Workbook

Sheet Лист1
B1: МКДОУ дс "Колосок" | K1: МКДОУ дс "Колосок"
B2: III день ясли | K2: III день сад
B3: № рец | C3: Наименование блюда | E3: Химический состав | I3: Выход | K3: № рец | L3: Наименование блюда | N3: Химический состав | R3: Выход
B4: I завтрак | E4: Б | F4: Ж | G4: У | H4: К | K4: I завтрак | N4: Б | O4: Ж | P4: У | Q4: К
B5: 340 | C5: Омлет натуральный | E5: 6.89 | F5: 7.33 | G5: 4.51 | H5: 111.47 | I5: 80 | K5: 340 | L5: Омлет натуральный | N5: 2.67 | O5: 3.42 | P5: 5.18 | Q5: 61.83 | R5: 100
B6: 692 | C6: Кофейный напиток | E6: 0.09 | F6: 0.003 | G6: 9.21 | H6: 37.24 | I6: 150 | K6: 692 | L6: Кофейный напиток | N6: 0.114 | O6: 0.004 | P6: 11.45 | Q6: 46.26 | R6: 200
B7: 1 | C7: Бутерброд с маслом | E7: 0.88 | F7: 3.26 | G7: 5.82 | H7: 56.12 | I7: 12/4 | K7: 1 | L7: Бутерброд с маслом | N7: 1.2 | O7: 3.4 | P7: 7.7 | Q7: 66 | R7: 16/4
C8: Хлеб в/с пшеничный | E8: 0.84 | F8: 0.36 | G8: 5.76 | H8: 29.64 | I8: 12 | L8: Хлеб в/с пшеничный | N8: 1.6 | O8: 0.48 | P8: 6.88 | Q8: 38.24 | R8: 16
B9: ВСЕГО: | E9: =SUM(E5:E7) -> 7.86 | F9: =SUM(F5:F7) -> 10.593 | G9: =SUM(G5:G7) -> 19.54 | H9: =SUM(H5:H7) -> 204.83 | K9: Итого за завтрак: | N9: =SUM(N5:N7) -> 3.984 | O9: =SUM(O5:O7) -> 6.824 | P9: =SUM(P5:P7) -> 24.33 | Q9: =SUM(Q5:Q7) -> 174.09
B10: II завтрак | K10: II завтрак
B11: Обед | K11: Обед
B12: 138 | C12: Суп картофельный с крупой | E12: 4.64 | F12: 3.68 | G12: 14.09 | H12: 108.023 | I12: 150 | K12: 138 | L12: Суп картофельный с крупой | N12: 5.1 | O12: 5 | P12: 17.5 | Q12: 135.7 | R12: 200
B13: 455 | C13: Котлета с капустой | E13: 10.41 | F13: 5.52 | G13: 6.81 | H13: 118.48 | I13: 50 | K13: 455 | L13: Котлета с капустой | N13: 5.12 | O13: 5.54 | P13: 11.615 | Q13: 116.48 | R13: 60
B14: 536 | C14: Свекла тушеная | E14: 1.6 | F14: 2 | G14: 10.15 | H14: 64.98 | I14: 80 | K14: 536 | L14: Свекла тушеная | N14: 2 | O14: 5 | P14: 13 | Q14: 105 | R14: 120
B15: 648 | C15: Кисель | E15: 3.64 | F15: 4.2 | G15: 9.08 | H15: 88.58 | I15: 130 | K15: 648 | L15: Кисель | N15: 0.02 | O15: 0 | Q15: 88.8 | R15: 200
C16: Хлеб ржаной | E16: 1.97 | F16: 0.38 | G16: 11.8 | H16: 58.49 | I16: 29 | L16: Хлеб белый | N16: 1.82 | O16: 0.78 | P16: 12.48 | Q16: 64.22 | R16: 62
B17: Итого за обед: | E17: =SUM(E12:E16) -> 22.26 | F17: =SUM(F12:F16) -> 15.78 | G17: =SUM(G12:G16) -> 51.93 | H17: =SUM(H12:H16) -> 438.553 | I17: =SUM(I12:I16) -> 439 | K17: Итого за обед: | N17: =SUM(N12:N16) -> 14.06 | O17: =SUM(O12:O16) -> 16.32 | P17: 54.595 | Q17: 510.2
B18: Уплотненный полдник | K18: Уплотненный полдник
B19: 161 | C19: Суп молочный с крупой | E19: 4.48 | F19: 4.91 | G19: 16.4 | H19: 127.72 | I19: 150 | K19: 161 | L19: Суп молочный с крупой | N19: 5.56 | O19: 4.64 | P19: 21.71 | Q19: 149.93 | R19: 200
C20: Хлеб белый | E20: 0.84 | F20: 0.36 | G20: 5.76 | H20: 29.64 | I20: 12 | L20: Хлеб белый | N20: 1.12 | O20: 0.48 | P20: 7.68 | Q20: 39.52 | R20: 16
B21: 685 | C21: Чай с сахаром | E21: 0.14 | F21: 0.04 | G21: 7.95 | H21: 32.67 | I21: 150 | K21: 685 | L21: Чай с сахаром | N21: 0.16 | O21: 0.004 | P21: 9.93 | Q21: 40.74 | R21: 200
B22: 769 | C22: Булочка домашняя | E22: 4.42 | F22: 4.76 | G22: 26.52 | H22: 166.41 | I22: 50 | K22: 769 | L22: Булочка домашняя | N22: 5.15 | O22: 5 | P22: 31.64 | Q22: 191.01 | R22: 70
B23: ВСЕГО: | E23: =SUM(E19:E22) -> 9.88 | F23: =SUM(F19:F22) -> 10.07 | G23: =SUM(G19:G22) -> 56.63 | H23: =SUM(H19:H22) -> 356.44 | K23: Итого за полдник : | N23: =SUM(N19:N22) -> 11.99 | O23: =SUM(O19:O22) -> 10.124 | P23: 70.96 | Q23: 421.2
B24: ИТОГО ЗА 3 ДЕНЬ: | E24: =SUM(E5:E9,E12:E17,E19:E23) -> 80.84 | F24: =SUM(F5:F9,F12:F17,F19:F23) -> 73.246 | G24: =SUM(G5:G9,G12:G17,G19:G23) -> 261.96 | H24: =SUM(H5:H9,H12:H17,H19:H23) -> 2029.286 | K24: ИТОГО ЗА 3 ДЕНЬ: | N24: =SUM(N5:N9,N12:N17,N19:N23) -> 61.668 | O24: =SUM(O5:O9,O12:O17,O19:O23) -> 67.016 | P24: =SUM(P5:P9,P12:P17,P19:P23) -> 306.65 | Q24: =SUM(Q5:Q9,Q12:Q17,Q19:Q23) -> 2249.22
